[Event "Gibraltar Masters 18th"]
[Site "Gibraltar"]
[Date "2020.01.30"]
[Round "10.21"]
[White "Donchenko, Alexander"]
[Black "Gordon, Stephen J"]
[Result "1-0"]
[ECO "E05"]
[WhiteElo "2647"]
[BlackElo "2504"]
[PlyCount "77"]
[EventDate "2020.01.21"]
[EventType "swiss"]
[EventRounds "10"]
[EventCountry "GGB"]
[SourceTitle "BritBase"]
[Source "John Saunders"]
[SourceDate "2021.06.05"]
[SourceVersion "1"]
[SourceVersionDate "2021.06.05"]
[SourceQuality "1"]
[TimeControl "40/100:0"]
[WhiteClock "0:26:49"]
[BlackClock "0:01:34"]

1. d4 {[%emt 0:00:00]} Nf6 {[%emt 0:00:00]} 2. c4 {[%emt 0:00:00]} e6 {[%emt 0:
00:00]} 3. g3 {[%emt 0:00:00]} d5 {[%emt 0:00:00]} 4. Bg2 {[%emt 0:00:00]} Be7
{[%emt 0:00:00]} 5. Nf3 {[%emt 0:00:00]} O-O {[%emt 0:00:00]} 6. O-O {[%emt 0:
00:00]} dxc4 {[%emt 0:00:00]} 7. Qa4 {[%emt 0:00:00]} a6 {[%emt 0:00:00]} 8.
Qxc4 {[%emt 0:00:00]} b5 {[%emt 0:00:00]} 9. Qc2 {[%emt 0:00:00]} Bb7 {[%emt 0:
00:00]} 10. Bd2 {[%emt 0:00:00]} Be4 {[%emt 0:00:00]} 11. Qc1 {[%emt 0:00:00]}
c6 {[%emt 0:00:00]} 12. a4 {[%emt 0:00:00]} Nbd7 {[%emt 0:00:00]} 13. Nc3 {
[%emt 0:00:00]} Bg6 {[%emt 0:00:00]} 14. Nh4 {[%emt 0:00:00]} Bh5 {[%emt 0:00:
00]} 15. h3 {[%emt 0:00:00]} b4 {[%emt 0:00:00]} 16. Na2 {[%emt 0:00:00]} a5 {
[%emt 0:00:00]} 17. g4 {[%emt 0:00:00]} Nd5 {[%emt 0:00:00]} 18. gxh5 {[%emt 0:
00:00]} Bxh4 {[%emt 0:00:00]} 19. Qxc6 {[%emt 0:00:00]} Rc8 {[%emt 0:00:00]}
20. Qb5 {[%emt 0:00:00]} N7f6 {[%emt 0:00:00]} 21. Bf3 {[%emt 0:00:00]} Qb6 {
[%emt 0:00:00]} 22. Qxb6 {[%emt 0:00:00]} Nxb6 {[%emt 0:00:00]} 23. Rfc1 {
[%emt 0:00:00]} Nxa4 {[%emt 0:00:00]} 24. Nxb4 {[%emt 0:00:00]} Rxc1+ {[%emt 0:
00:00]} 25. Bxc1 {[%emt 0:00:00]} Nxb2 {[%emt 0:00:00]} 26. Rxa5 {[%emt 0:00:
00]} Nd1 {[%emt 0:00:00]} 27. Nd3 {[%emt 0:00:00]} Nc3 {[%emt 0:00:00]} 28. Ba3
{[%emt 0:00:00]} Rd8 {[%emt 0:00:00]} 29. e3 {[%emt 0:00:00]} h6 {[%emt 0:00:
00]} 30. Kg2 {[%emt 0:00:00]} Nfe4 {[%emt 0:00:00]} 31. Bb4 {[%emt 0:00:00]}
Rb8 {[%emt 0:00:00]} 32. Ra3 {[%emt 0:00:00]} Nb5 {[%emt 0:00:00]} 33. Ra6 {
[%emt 0:00:00]} Nc7 {[%emt 0:00:06]} 34. Rc6 {[%emt 0:00:00]} Nxf2 {[%emt 0:00:
07]} 35. Nxf2 {[%emt 0:00:00]} Rxb4 {[%emt 0:00:38]} 36. Rxc7 {[%emt 0:00:00]}
Rb2 {[%emt 0:00:00]} 37. Rc8+ {[%emt 0:00:00]} Kh7 {[%emt 0:00:00]} 38. Be4+ {
[%emt 0:00:00]} f5 {[%emt 0:00:00]} 39. Bc2 {[%emt 0:00:00]} 1-0

[Event "Gibraltar Masters 18th"]
[Site "Gibraltar"]
[Date "2020.01.30"]
[Round "10.22"]
[White "Lei, Tingjie"]
[Black "Durarbayli, Vasif"]
[Result "1-0"]
[ECO "D43"]
[WhiteElo "2493"]
[BlackElo "2625"]
[PlyCount "57"]
[EventDate "2020.01.21"]
[EventType "swiss"]
[EventRounds "10"]
[EventCountry "GGB"]
[SourceTitle "BritBase"]
[Source "John Saunders"]
[SourceDate "2021.06.05"]
[SourceVersion "1"]
[SourceVersionDate "2021.06.05"]
[SourceQuality "1"]
[TimeControl "40/100:0"]
[WhiteClock "0:20:29"]
[BlackClock "0:37:52"]

1. d4 {[%emt 0:00:00]} d5 {[%emt 0:00:00]} 2. c4 {[%emt 0:00:00]} c6 {[%emt 0:
00:00]} 3. Nf3 {[%emt 0:00:00]} Nf6 {[%emt 0:00:00]} 4. Nc3 {[%emt 0:00:00]} e6
{[%emt 0:00:00]} 5. Bg5 {[%emt 0:00:00]} h6 {[%emt 0:00:00]} 6. Bh4 {[%emt 0:
00:00]} dxc4 {[%emt 0:00:00]} 7. e4 {[%emt 0:00:00]} g5 {[%emt 0:00:00]} 8. Bg3
{[%emt 0:00:00]} b5 {[%emt 0:00:00]} 9. Be2 {[%emt 0:00:00]} Rg8 {[%emt 0:00:
00]} 10. e5 {[%emt 0:00:00]} Nh5 {[%emt 0:00:00]} 11. a4 {[%emt 0:00:00]} Qb6 {
[%emt 0:00:00]} 12. O-O {[%emt 0:00:00]} Nd7 {[%emt 0:00:00]} 13. axb5 {
[%emt 0:00:00]} cxb5 {[%emt 0:00:00]} 14. d5 {[%emt 0:00:00]} Nxg3 {[%emt 0:00:
00]} 15. hxg3 {[%emt 0:00:00]} Bb7 {[%emt 0:00:00]} 16. Nd4 {[%emt 0:00:00]} a6
{[%emt 0:00:00]} 17. dxe6 {[%emt 0:00:00]} fxe6 {[%emt 0:00:00]} 18. Nxe6 {
[%emt 0:00:00]} Qxe6 {[%emt 0:00:00]} 19. Bg4 {[%emt 0:00:00]} Qc6 {[%emt 0:00:
00]} 20. Bf3 {[%emt 0:00:00]} Qxf3 {[%emt 0:00:00]} 21. gxf3 {[%emt 0:00:00]}
O-O-O {[%emt 0:00:00]} 22. Qc2 {[%emt 0:00:00]} Bg7 {[%emt 0:00:00]} 23. Rfe1 {
[%emt 0:00:00]} Rge8 {[%emt 0:00:00]} 24. e6 {[%emt 0:00:00]} Ne5 {[%emt 0:00:
00]} 25. Rxe5 {[%emt 0:00:00]} Bxe5 {[%emt 0:00:00]} 26. Qf5 {[%emt 0:00:00]}
Bd6 {[%emt 0:00:00]} 27. e7+ {[%emt 0:00:00]} Rd7 {[%emt 0:00:00]} 28. Nd5 {
[%emt 0:00:00]} Bc7 {[%emt 0:00:00]} 29. Qf7 {[%emt 0:00:00]} 1-0

[Event "Gibraltar Masters 18th"]
[Site "Gibraltar"]
[Date "2020.01.30"]
[Round "10.23"]
[White "Abdumalik, Zhansaya"]
[Black "Pichot, Alan"]
[Result "0-1"]
[ECO "C88"]
[WhiteElo "2471"]
[BlackElo "2606"]
[PlyCount "76"]
[EventDate "2020.01.21"]
[EventType "swiss"]
[EventRounds "10"]
[EventCountry "GGB"]
[SourceTitle "BritBase"]
[Source "John Saunders"]
[SourceDate "2021.06.05"]
[SourceVersion "1"]
[SourceVersionDate "2021.06.05"]
[SourceQuality "1"]
[TimeControl "40/100:0"]
[WhiteClock "0:12:46"]
[BlackClock "0:07:29"]

1. e4 {[%emt 0:00:00]} e5 {[%emt 0:00:00]} 2. Nf3 {[%emt 0:00:00]} Nc6 {
[%emt 0:00:00]} 3. Bb5 {[%emt 0:00:00]} a6 {[%emt 0:00:00]} 4. Ba4 {[%emt 0:00:
00]} Nf6 {[%emt 0:00:00]} 5. O-O {[%emt 0:00:00]} b5 {[%emt 0:00:00]} 6. Bb3 {
[%emt 0:00:00]} Bb7 {[%emt 0:00:00]} 7. Re1 {[%emt 0:00:00]} Be7 {[%emt 0:00:
00]} 8. d4 {[%emt 0:00:00]} Nxd4 {[%emt 0:00:00]} 9. Bxf7+ {[%emt 0:00:00]} Kf8
{[%emt 0:00:00]} 10. Bd5 {[%emt 0:00:00]} c6 {[%emt 0:00:00]} 11. Bb3 {[%emt 0:
00:00]} Nxb3 {[%emt 0:00:00]} 12. axb3 {[%emt 0:00:00]} d6 {[%emt 0:00:00]} 13.
c4 {[%emt 0:00:00]} Kg8 {[%emt 0:00:00]} 14. Nbd2 {[%emt 0:00:00]} h6 {[%emt 0:
00:00]} 15. Nf1 {[%emt 0:00:00]} Kh7 {[%emt 0:00:00]} 16. Qc2 {[%emt 0:00:00]}
Qc7 {[%emt 0:00:00]} 17. Bd2 {[%emt 0:00:00]} Rhe8 {[%emt 0:00:00]} 18. Ba5 {
[%emt 0:00:00]} Qb8 {[%emt 0:00:00]} 19. Ng3 {[%emt 0:00:00]} Bf8 {[%emt 0:00:
00]} 20. Nh4 {[%emt 0:00:00]} Bc8 {[%emt 0:00:00]} 21. Bd2 {[%emt 0:00:00]} Be6
{[%emt 0:00:00]} 22. Nhf5 {[%emt 0:00:00]} a5 {[%emt 0:00:00]} 23. Ne3 {
[%emt 0:00:00]} Kg8 {[%emt 0:00:00]} 24. Rec1 {[%emt 0:00:00]} b4 {[%emt 0:00:
00]} 25. Qd1 {[%emt 0:00:00]} Qb7 {[%emt 0:00:00]} 26. Qf3 {[%emt 0:00:00]} Qf7
{[%emt 0:00:00]} 27. Rf1 {[%emt 0:00:00]} Nd7 {[%emt 0:00:00]} 28. Qd1 {
[%emt 0:00:00]} Nc5 {[%emt 0:00:00]} 29. Qc2 {[%emt 0:00:00]} d5 {[%emt 0:00:
00]} 30. Rfc1 {[%emt 0:00:00]} d4 {[%emt 0:00:00]} 31. Nef5 {[%emt 0:00:00]}
Kh7 {[%emt 0:00:00]} 32. h3 {[%emt 0:00:00]} Qf6 {[%emt 0:00:00]} 33. Nh5 {
[%emt 0:00:00]} Qd8 {[%emt 0:00:00]} 34. f4 {[%emt 0:00:00]} d3 {[%emt 0:00:00]
} 35. Qd1 {[%emt 0:00:00]} Nxe4 {[%emt 0:00:00]} 36. Nhg3 {[%emt 0:00:00]} exf4
{[%emt 0:00:00]} 37. Nxe4 {[%emt 0:00:00]} Bxf5 {[%emt 0:00:00]} 38. Nf2 {
[%emt 0:00:00]} Re2 {[%emt 0:00:00]} 0-1

[Event "Gibraltar Masters 18th"]
[Site "Gibraltar"]
[Date "2020.01.30"]
[Round "10.24"]
[White "Basso, Pier Luigi"]
[Black "Barbosa, Evandro Amorim"]
[Result "1/2-1/2"]
[ECO "D70"]
[WhiteElo "2600"]
[BlackElo "2501"]
[PlyCount "77"]
[EventDate "2020.01.21"]
[EventType "swiss"]
[EventRounds "10"]
[EventCountry "GGB"]
[SourceTitle "BritBase"]
[Source "John Saunders"]
[SourceDate "2021.06.05"]
[SourceVersion "1"]
[SourceVersionDate "2021.06.05"]
[SourceQuality "1"]
[TimeControl "40/100:0"]
[WhiteClock "0:04:18"]
[BlackClock "0:06:02"]

1. d4 {[%emt 0:00:00]} Nf6 {[%emt 0:00:00]} 2. c4 {[%emt 0:00:00]} g6 {[%emt 0:
00:00]} 3. f3 {[%emt 0:00:00]} d5 {[%emt 0:00:00]} 4. cxd5 {[%emt 0:00:00]}
Nxd5 {[%emt 0:00:00]} 5. e4 {[%emt 0:00:00]} Nb6 {[%emt 0:00:00]} 6. Nc3 {
[%emt 0:00:00]} Bg7 {[%emt 0:00:00]} 7. Be3 {[%emt 0:00:00]} O-O {[%emt 0:00:
00]} 8. Qd2 {[%emt 0:00:00]} e5 {[%emt 0:00:00]} 9. d5 {[%emt 0:00:00]} c6 {
[%emt 0:00:00]} 10. h4 {[%emt 0:00:00]} cxd5 {[%emt 0:00:00]} 11. exd5 {
[%emt 0:00:00]} h5 {[%emt 0:00:00]} 12. g4 {[%emt 0:00:00]} Na6 {[%emt 0:00:00]
} 13. gxh5 {[%emt 0:00:00]} Bf5 {[%emt 0:00:00]} 14. hxg6 {[%emt 0:00:00]} Nb4
{[%emt 0:00:00]} 15. Rc1 {[%emt 0:00:00]} Rc8 {[%emt 0:00:00]} 16. d6 {[%emt 0:
00:00]} Nc4 {[%emt 0:00:00]} 17. Bxc4 {[%emt 0:00:00]} Rxc4 {[%emt 0:00:00]}
18. Kf1 {[%emt 0:00:00]} Nd3 {[%emt 0:00:00]} 19. Rd1 {[%emt 0:00:00]} fxg6 {
[%emt 0:00:00]} 20. Kg2 {[%emt 0:00:00]} e4 {[%emt 0:00:00]} 21. f4 {[%emt 0:
00:00]} Qxd6 {[%emt 0:00:00]} 22. Rh2 {[%emt 0:00:00]} Qc6 {[%emt 0:00:00]} 23.
Kh1 {[%emt 0:00:00]} Bg4 {[%emt 0:00:00]} 24. Rf1 {[%emt 0:00:00]} b5 {[%emt 0:
00:00]} 25. Qg2 {[%emt 0:00:00]} Qe6 {[%emt 0:00:00]} 26. Nxb5 {[%emt 0:00:00]}
Rb8 {[%emt 0:00:00]} 27. b3 {[%emt 0:00:00]} Rc6 {[%emt 0:00:00]} 28. Nd4 {
[%emt 0:00:00]} Bxd4 {[%emt 0:00:00]} 29. Bxd4 {[%emt 0:00:00]} Qf5 {[%emt 0:
00:00]} 30. Qg3 {[%emt 0:00:00]} Rbc8 {[%emt 0:00:00]} 31. Rg2 {[%emt 0:00:00]}
Bh5 {[%emt 0:00:00]} 32. Qg5 {[%emt 0:00:00]} Qxg5 {[%emt 0:00:00]} 33. Rxg5 {
[%emt 0:00:00]} Rc1 {[%emt 0:00:00]} 34. Rxc1 {[%emt 0:00:00]} Rxc1 {[%emt 0:
00:00]} 35. Be3 {[%emt 0:00:00]} Re1 {[%emt 0:00:00]} 36. Bd2 {[%emt 0:00:00]}
Rd1 {[%emt 0:00:00]} 37. Be3 {[%emt 0:00:00]} Re1 {[%emt 0:00:00]} 38. Bd2 {
[%emt 0:00:00]} Rd1 {[%emt 0:00:00]} 39. Be3 {[%emt 0:00:00]} 1/2-1/2

[Event "Gibraltar Masters 18th"]
[Site "Gibraltar"]
[Date "2020.01.30"]
[Round "10.25"]
[White "Can, Emre"]
[Black "Gagare, Shardul"]
[Result "1-0"]
[ECO "D43"]
[WhiteElo "2600"]
[BlackElo "2481"]
[PlyCount "113"]
[EventDate "2020.01.21"]
[EventType "swiss"]
[EventRounds "10"]
[EventCountry "GGB"]
[SourceTitle "BritBase"]
[Source "John Saunders"]
[SourceDate "2021.06.05"]
[SourceVersion "1"]
[SourceVersionDate "2021.06.05"]
[SourceQuality "1"]
[TimeControl "40/100:0"]
[WhiteClock "0:49:12"]
[BlackClock "0:40:56"]

1. d4 {[%emt 0:00:00]} d5 {[%emt 0:00:00]} 2. c4 {[%emt 0:00:00]} c6 {[%emt 0:
00:00]} 3. Nf3 {[%emt 0:00:00]} Nf6 {[%emt 0:00:00]} 4. Nc3 {[%emt 0:00:00]} e6
{[%emt 0:00:00]} 5. Bg5 {[%emt 0:00:00]} h6 {[%emt 0:00:00]} 6. Bxf6 {[%emt 0:
00:00]} Qxf6 {[%emt 0:00:00]} 7. Qb3 {[%emt 0:00:00]} Nd7 {[%emt 0:00:00]} 8.
e4 {[%emt 0:00:00]} dxc4 {[%emt 0:00:00]} 9. Bxc4 {[%emt 0:00:00]} b5 {[%emt 0:
00:00]} 10. Be2 {[%emt 0:00:00]} a6 {[%emt 0:00:00]} 11. O-O {[%emt 0:00:00]}
c5 {[%emt 0:00:00]} 12. Rad1 {[%emt 0:00:00]} cxd4 {[%emt 0:00:00]} 13. e5 {
[%emt 0:00:00]} Qd8 {[%emt 0:00:00]} 14. Nxd4 {[%emt 0:00:00]} Qb6 {[%emt 0:00:
00]} 15. Bf3 {[%emt 0:00:00]} Nc5 {[%emt 0:00:00]} 16. Na4 {[%emt 0:00:00]}
Nxa4 {[%emt 0:00:00]} 17. Bxa8 {[%emt 0:00:00]} Bc5 {[%emt 0:00:00]} 18. Nf3 {
[%emt 0:00:00]} O-O {[%emt 0:00:00]} 19. Qc2 {[%emt 0:00:00]} Qa7 {[%emt 0:00:
00]} 20. Be4 {[%emt 0:00:00]} Bb6 {[%emt 0:00:00]} 21. b4 {[%emt 0:00:00]} a5 {
[%emt 0:00:00]} 22. a3 {[%emt 0:00:00]} axb4 {[%emt 0:00:00]} 23. axb4 {
[%emt 0:00:00]} Bd7 {[%emt 0:00:00]} 24. Rc1 {[%emt 0:00:00]} Qb8 {[%emt 0:01:
02]} 25. Rfd1 {[%emt 0:00:00]} Rc8 {[%emt 0:00:00]} 26. Qd2 {[%emt 0:00:00]}
Rd8 {[%emt 0:00:00]} 27. Qe2 {[%emt 0:00:00]} Rc8 {[%emt 0:00:00]} 28. Rxc8+ {
[%emt 0:00:00]} Qxc8 {[%emt 0:00:00]} 29. Qd2 {[%emt 0:00:00]} Qc4 {[%emt 0:00:
03]} 30. Qxd7 {[%emt 0:00:00]} Qxe4 {[%emt 0:00:00]} 31. Qxb5 {[%emt 0:00:00]}
Qc2 {[%emt 0:00:00]} 32. Rf1 {[%emt 0:00:00]} g5 {[%emt 0:00:00]} 33. Ne1 {
[%emt 0:00:00]} Qb3 {[%emt 0:00:00]} 34. Nd3 {[%emt 0:00:00]} Nc3 {[%emt 0:00:
00]} 35. Nc1 {[%emt 0:00:00]} Nxb5 {[%emt 0:00:00]} 36. Nxb3 {[%emt 0:00:00]}
Nc3 {[%emt 0:00:00]} 37. Ra1 {[%emt 0:00:00]} Bc7 {[%emt 0:00:00]} 38. Re1 {
[%emt 0:00:00]} Nd5 {[%emt 0:00:00]} 39. Re4 {[%emt 0:00:00]} Nc3 {[%emt 0:00:
00]} 40. Re1 {[%emt 0:00:00]} Nd5 {[%emt 0:00:00]} 41. Re4 {[%emt 0:02:47]} Nc3
{[%emt 0:01:23]} 42. Rc4 {[%emt 0:00:00]} Bxe5 {[%emt 0:00:00]} 43. Rc5 {
[%emt 0:00:00]} Nd5 {[%emt 0:00:00]} 44. b5 {[%emt 0:00:00]} Bc7 {[%emt 0:00:
00]} 45. Nd2 {[%emt 0:00:00]} Kf8 {[%emt 0:00:00]} 46. Nc4 {[%emt 0:00:00]} Ke7
{[%emt 0:00:00]} 47. Ne3 {[%emt 0:00:00]} Kd6 {[%emt 0:00:00]} 48. Rc6+ {
[%emt 0:00:00]} Kd7 {[%emt 0:00:00]} 49. Nxd5 {[%emt 0:00:00]} exd5 {[%emt 0:
00:00]} 50. Rxh6 {[%emt 0:00:00]} d4 {[%emt 0:00:00]} 51. Kf1 {[%emt 0:00:00]}
Be5 {[%emt 0:00:00]} 52. Ke2 {[%emt 0:00:00]} f6 {[%emt 0:00:00]} 53. Rh7+ {
[%emt 0:00:00]} Kd6 {[%emt 0:00:00]} 54. b6 {[%emt 0:00:00]} Kc6 {[%emt 0:00:
00]} 55. b7 {[%emt 0:00:00]} Kb6 {[%emt 0:00:00]} 56. Kd3 {[%emt 0:00:00]} Ka7
{[%emt 0:00:00]} 57. g3 {[%emt 0:00:00]} 1-0

[Event "Gibraltar Masters 18th"]
[Site "Gibraltar"]
[Date "2020.01.30"]
[Round "10.26"]
[White "Di Berardino, Diego Rafael"]
[Black "Kryakvin, Dmitry"]
[Result "0-1"]
[ECO "C09"]
[WhiteElo "2478"]
[BlackElo "2592"]
[PlyCount "78"]
[EventDate "2020.01.21"]
[EventType "swiss"]
[EventRounds "10"]
[EventCountry "GGB"]
[SourceTitle "BritBase"]
[Source "John Saunders"]
[SourceDate "2021.06.05"]
[SourceVersion "1"]
[SourceVersionDate "2021.06.05"]
[SourceQuality "1"]
[TimeControl "40/100:0"]
[WhiteClock "0:01:38"]
[BlackClock "0:08:33"]

1. e4 {[%emt 0:00:00]} e6 {[%emt 0:00:00]} 2. d4 {[%emt 0:00:00]} d5 {[%emt 0:
00:00]} 3. Nd2 {[%emt 0:00:00]} c5 {[%emt 0:00:00]} 4. exd5 {[%emt 0:00:00]}
exd5 {[%emt 0:00:00]} 5. Ngf3 {[%emt 0:00:00]} Nc6 {[%emt 0:00:00]} 6. Bb5 {
[%emt 0:00:00]} Qe7+ {[%emt 0:00:00]} 7. Be2 {[%emt 0:00:00]} Qc7 {[%emt 0:00:
00]} 8. O-O {[%emt 0:00:00]} Nf6 {[%emt 0:00:00]} 9. dxc5 {[%emt 0:00:00]} Bxc5
{[%emt 0:00:00]} 10. Nb3 {[%emt 0:00:00]} Be7 {[%emt 0:00:00]} 11. Bg5 {
[%emt 0:00:00]} O-O {[%emt 0:00:00]} 12. c3 {[%emt 0:00:00]} Rd8 {[%emt 0:00:
00]} 13. Re1 {[%emt 0:00:00]} Bf5 {[%emt 0:00:00]} 14. Bh4 {[%emt 0:00:00]} Bg6
{[%emt 0:00:00]} 15. Bb5 {[%emt 0:00:00]} Ne4 {[%emt 0:00:00]} 16. Bxc6 {
[%emt 0:00:00]} Bxh4 {[%emt 0:00:00]} 17. Nxh4 {[%emt 0:00:00]} bxc6 {[%emt 0:
00:00]} 18. Nxg6 {[%emt 0:00:00]} hxg6 {[%emt 0:00:00]} 19. f3 {[%emt 0:00:00]}
Nd6 {[%emt 0:00:00]} 20. Qd4 {[%emt 0:00:00]} Re8 {[%emt 0:00:00]} 21. Nc5 {
[%emt 0:00:00]} Qb6 {[%emt 0:00:00]} 22. Qf2 {[%emt 0:00:00]} Rab8 {[%emt 0:00:
00]} 23. b3 {[%emt 0:00:00]} Nb5 {[%emt 0:00:00]} 24. Na4 {[%emt 0:00:00]} Qc7
{[%emt 0:00:00]} 25. Rxe8+ {[%emt 0:00:00]} Rxe8 {[%emt 0:00:00]} 26. Re1 {
[%emt 0:00:00]} Rxe1+ {[%emt 0:00:00]} 27. Qxe1 {[%emt 0:00:00]} Qf4 {[%emt 0:
00:00]} 28. Qe8+ {[%emt 0:00:00]} Kh7 {[%emt 0:00:00]} 29. Qxc6 {[%emt 0:00:00]
} Qc1+ {[%emt 0:00:00]} 30. Kf2 {[%emt 0:00:00]} Nd4 {[%emt 0:00:00]} 31. Qe8 {
[%emt 0:00:00]} Qd2+ {[%emt 0:00:00]} 32. Kf1 {[%emt 0:00:00]} Ne6 {[%emt 0:00:
00]} 33. Qe7 {[%emt 0:00:00]} g5 {[%emt 0:00:00]} 34. g3 {[%emt 0:00:00]} Qd3+
{[%emt 0:00:00]} 35. Kf2 {[%emt 0:00:00]} Qc2+ {[%emt 0:00:00]} 36. Kg1 {
[%emt 0:00:00]} Qb1+ {[%emt 0:00:00]} 37. Kg2 {[%emt 0:00:00]} Qxa2+ {[%emt 0:
00:00]} 38. Kh3 {[%emt 0:00:00]} Kg6 {[%emt 0:00:00]} 39. Qxa7 {[%emt 0:00:02]}
g4+ {[%emt 0:00:00]} 0-1

[Event "Gibraltar Masters 18th"]
[Site "Gibraltar"]
[Date "2020.01.30"]
[Round "10.27"]
[White "Santos Latasa, Jaime"]
[Black "Roussel-Roozmon, Thomas"]
[Result "1/2-1/2"]
[ECO "C24"]
[WhiteElo "2586"]
[BlackElo "2473"]
[PlyCount "71"]
[EventDate "2020.01.21"]
[EventType "swiss"]
[EventRounds "10"]
[EventCountry "GGB"]
[SourceTitle "BritBase"]
[Source "John Saunders"]
[SourceDate "2021.06.05"]
[SourceVersion "1"]
[SourceVersionDate "2021.06.05"]
[SourceQuality "1"]
[TimeControl "40/100:0"]
[WhiteClock "0:35:03"]
[BlackClock "0:04:16"]

1. e4 {[%emt 0:00:00]} e5 {[%emt 0:00:00]} 2. Bc4 {[%emt 0:00:00]} Nf6 {
[%emt 0:00:00]} 3. d3 {[%emt 0:00:00]} c6 {[%emt 0:00:00]} 4. Nf3 {[%emt 0:00:
00]} Be7 {[%emt 0:00:00]} 5. O-O {[%emt 0:00:00]} d6 {[%emt 0:00:00]} 6. Re1 {
[%emt 0:00:00]} Nbd7 {[%emt 0:00:00]} 7. c3 {[%emt 0:00:00]} O-O {[%emt 0:00:
00]} 8. Bb3 {[%emt 0:00:00]} Nc5 {[%emt 0:00:00]} 9. Bc2 {[%emt 0:00:00]} Qc7 {
[%emt 0:00:00]} 10. Nbd2 {[%emt 0:00:00]} Re8 {[%emt 0:00:00]} 11. Nf1 {
[%emt 0:00:00]} Bf8 {[%emt 0:00:00]} 12. Ng3 {[%emt 0:00:00]} b6 {[%emt 0:00:
00]} 13. Bg5 {[%emt 0:00:00]} Nfd7 {[%emt 0:00:00]} 14. d4 {[%emt 0:00:00]} Ne6
{[%emt 0:00:00]} 15. Be3 {[%emt 0:00:00]} Nf6 {[%emt 0:00:00]} 16. h3 {[%emt 0:
00:00]} Ba6 {[%emt 0:00:00]} 17. Qd2 {[%emt 0:00:00]} Rad8 {[%emt 0:00:00]} 18.
Rad1 {[%emt 0:00:00]} Bc4 {[%emt 0:00:00]} 19. Qc1 {[%emt 0:00:00]} g6 {
[%emt 0:00:00]} 20. b3 {[%emt 0:00:00]} Ba6 {[%emt 0:00:00]} 21. a4 {[%emt 0:
00:00]} Bg7 {[%emt 0:00:00]} 22. d5 {[%emt 0:00:00]} cxd5 {[%emt 0:00:00]} 23.
exd5 {[%emt 0:00:00]} Nc5 {[%emt 0:00:00]} 24. Bh6 {[%emt 0:00:00]} Bxh6 {
[%emt 0:00:00]} 25. Qxh6 {[%emt 0:00:00]} Qe7 {[%emt 0:00:00]} 26. Nd4 {
[%emt 0:00:00]} Qf8 {[%emt 0:00:00]} 27. Qxf8+ {[%emt 0:00:00]} Kxf8 {[%emt 0:
00:00]} 28. Nc6 {[%emt 0:00:00]} Ra8 {[%emt 0:00:00]} 29. Nf1 {[%emt 0:00:00]}
Bxf1 {[%emt 0:00:00]} 30. Kxf1 {[%emt 0:00:00]} Rec8 {[%emt 0:00:00]} 31. a5 {
[%emt 0:00:00]} Nxd5 {[%emt 0:00:00]} 32. Nxe5 {[%emt 0:00:00]} Nxc3 {[%emt 0:
00:00]} 33. Rxd6 {[%emt 0:00:00]} bxa5 {[%emt 0:00:00]} 34. Re3 {[%emt 0:00:00]
} Nb5 {[%emt 0:00:00]} 35. Rd5 {[%emt 0:00:00]} Ne6 {[%emt 0:00:00]} 36. Rxb5 {
[%emt 0:00:00]} 1/2-1/2

[Event "Gibraltar Masters 18th"]
[Site "Gibraltar"]
[Date "2020.01.30"]
[Round "10.28"]
[White "Ramirez, Alejandro"]
[Black "Ravi, Teja S"]
[Result "1/2-1/2"]
[ECO "D13"]
[WhiteElo "2574"]
[BlackElo "2464"]
[PlyCount "124"]
[EventDate "2020.01.21"]
[EventType "swiss"]
[EventRounds "10"]
[EventCountry "GGB"]
[SourceTitle "BritBase"]
[Source "John Saunders"]
[SourceDate "2021.06.05"]
[SourceVersion "1"]
[SourceVersionDate "2021.06.05"]
[SourceQuality "1"]
[TimeControl "40/100:0"]
[WhiteClock "0:00:50"]
[BlackClock "0:00:55"]

1. d4 {[%emt 0:00:00]} d5 {[%emt 0:00:00]} 2. c4 {[%emt 0:00:00]} c6 {[%emt 0:
00:00]} 3. cxd5 {[%emt 0:00:00]} cxd5 {[%emt 0:00:00]} 4. Nc3 {[%emt 0:00:00]}
Nf6 {[%emt 0:00:00]} 5. Bf4 {[%emt 0:00:00]} Nc6 {[%emt 0:00:00]} 6. e3 {
[%emt 0:00:00]} a6 {[%emt 0:00:00]} 7. Be2 {[%emt 0:00:00]} Bf5 {[%emt 0:00:00]
} 8. Nf3 {[%emt 0:00:00]} e6 {[%emt 0:00:00]} 9. Qb3 {[%emt 0:00:00]} Bd6 {
[%emt 0:00:00]} 10. Bxd6 {[%emt 0:00:00]} Qxd6 {[%emt 0:00:00]} 11. Qxb7 {
[%emt 0:00:00]} O-O {[%emt 0:00:00]} 12. Qb3 {[%emt 0:00:00]} Nb4 {[%emt 0:00:
00]} 13. O-O {[%emt 0:00:00]} Nc2 {[%emt 0:00:00]} 14. Rab1 {[%emt 0:00:00]}
Rfb8 {[%emt 0:00:00]} 15. Qa4 {[%emt 0:00:00]} Ng4 {[%emt 0:00:00]} 16. b3 {
[%emt 0:00:00]} Qc7 {[%emt 0:00:00]} 17. Nxd5 {[%emt 0:00:00]} exd5 {[%emt 0:
00:00]} 18. Rbc1 {[%emt 0:00:00]} Bd7 {[%emt 0:00:00]} 19. Qa3 {[%emt 0:00:00]}
Nxa3 {[%emt 0:00:00]} 20. Rxc7 {[%emt 0:00:00]} Nf6 {[%emt 0:00:00]} 21. Ne5 {
[%emt 0:00:00]} Be8 {[%emt 0:00:00]} 22. Rfc1 {[%emt 0:00:00]} Nb5 {[%emt 0:00:
00]} 23. R7c5 {[%emt 0:00:00]} Ne4 {[%emt 0:00:00]} 24. R5c2 {[%emt 0:00:00]}
a5 {[%emt 0:00:00]} 25. f3 {[%emt 0:00:00]} Nf6 {[%emt 0:00:00]} 26. Nc6 {
[%emt 0:00:00]} Bxc6 {[%emt 0:00:00]} 27. Rxc6 {[%emt 0:00:00]} Kf8 {[%emt 0:
00:00]} 28. R1c5 {[%emt 0:00:00]} Na3 {[%emt 0:00:00]} 29. g4 {[%emt 0:00:00]}
h6 {[%emt 0:00:00]} 30. h4 {[%emt 0:00:00]} a4 {[%emt 0:00:00]} 31. g5 {
[%emt 0:00:00]} axb3 {[%emt 0:00:00]} 32. axb3 {[%emt 0:00:00]} hxg5 {[%emt 0:
00:00]} 33. hxg5 {[%emt 0:00:00]} Ng8 {[%emt 0:00:00]} 34. Rc3 {[%emt 0:00:00]}
Ne7 {[%emt 0:00:00]} 35. R6c5 {[%emt 0:00:00]} Nb1 {[%emt 0:00:00]} 36. Rd3 {
[%emt 0:00:00]} Ra2 {[%emt 0:00:00]} 37. Bd1 {[%emt 0:00:00]} Nd2 {[%emt 0:00:
00]} 38. Rdc3 {[%emt 0:00:00]} g6 {[%emt 0:00:00]} 39. Rc2 {[%emt 0:00:00]}
Rba8 {[%emt 0:00:00]} 40. Kf2 {[%emt 0:00:58]} Nxb3 {[%emt 0:00:00]} 41. R5c3 {
[%emt 0:00:00]} Nd2 {[%emt 0:00:00]} 42. Be2 {[%emt 0:00:00]} Nf5 {[%emt 0:00:
00]} 43. Bd3 {[%emt 0:00:00]} Nd6 {[%emt 0:00:00]} 44. Rxa2 {[%emt 0:00:00]}
Rxa2 {[%emt 0:00:00]} 45. Kg3 {[%emt 0:00:00]} N6c4 {[%emt 0:00:00]} 46. e4 {
[%emt 0:00:00]} Ra3 {[%emt 0:00:00]} 47. Rxa3 {[%emt 0:00:00]} Nxa3 {[%emt 0:
00:00]} 48. exd5 {[%emt 0:00:00]} Nac4 {[%emt 0:00:00]} 49. f4 {[%emt 0:00:00]}
Nd6 {[%emt 0:00:00]} 50. f5 {[%emt 0:00:00]} gxf5 {[%emt 0:00:00]} 51. Kf4 {
[%emt 0:00:00]} N2e4 {[%emt 0:00:00]} 52. Be2 {[%emt 0:00:00]} Ke7 {[%emt 0:00:
00]} 53. Bf1 {[%emt 0:00:00]} Nc3 {[%emt 0:00:00]} 54. Ke5 {[%emt 0:00:00]}
Nde4 {[%emt 0:00:00]} 55. Bh3 {[%emt 0:00:00]} Nd6 {[%emt 0:01:52]} 56. Bxf5 {
[%emt 0:00:00]} Nc4+ {[%emt 0:00:21]} 57. Kf4 {[%emt 0:00:00]} Nxd5+ {[%emt 0:
00:00]} 58. Kf3 {[%emt 0:00:00]} Nd6 {[%emt 0:00:00]} 59. Bc2 {[%emt 0:00:46]}
Nc7 {[%emt 0:00:27]} 60. d5 {[%emt 0:00:13]} Nxd5 {[%emt 0:00:00]} 61. g6 {
[%emt 0:00:45]} f6 {[%emt 0:00:00]} 62. g7 {[%emt 0:00:00]} Kf7 {[%emt 0:00:08]
} 1/2-1/2